[Event "Titled Tuesday Blitz August 15 Early 2023"]
[White "Mihailidis, Anastasios"]
[Black "Ai, Evan"]
[WhiteFideId "4205588"]
[BlackFideId "2094770"]
[WhiteElo "2493"]
[BlackElo "2290"]
[Result "1-0"]
[Round "2"]
[TimeControl "180+1"]
[Date "2023.08.15"]
[WhiteClock "0:01:58"]
[BlackClock "0:00:48"]
[Board "187"]

1. e4 {[%clk 0:03:00]}  c5 {[%clk 0:02:58]} 2. Nf3 {[%clk 0:03:00]}  d6 {[%clk 0:02:57]} 3. d4 {[%clk 0:03:00]}  cxd4 {[%clk 0:02:58]} 4. Nxd4 {[%clk 0:03:00]}  Nf6 {[%clk 0:02:58]} 5. f3 {[%clk 0:03:01]}  e5 {[%clk 0:02:58]} 6. Nb3 {[%clk 0:02:59]}  Be6 {[%clk 0:02:57]} 7. c4 {[%clk 0:02:59]}  a5 {[%clk 0:02:56]} 8. a4 {[%clk 0:02:58]}  Nc6 {[%clk 0:02:56]} 9. Be3 {[%clk 0:02:57]}  Qc7 {[%clk 0:02:52]} 10. Nc3 {[%clk 0:02:57]}  Nb4 {[%clk 0:02:40]} 11. Rc1 {[%clk 0:02:53]}  Qd7 {[%clk 0:02:22]} 12. Be2 {[%clk 0:02:38]}  Rc8 {[%clk 0:02:19]} 13. Nb5 {[%clk 0:02:33]}  Be7 {[%clk 0:01:47]} 14. O-O {[%clk 0:02:32]}  O-O {[%clk 0:01:40]} 15. Qd2 {[%clk 0:02:30]}  Ra8 {[%clk 0:01:22]} 16. Rfd1 {[%clk 0:02:28]}  Ra6 {[%clk 0:01:02]} 17. Nxa5 {[%clk 0:02:14]}  Rxa5 {[%clk 0:01:02]} 18. Qxb4 {[%clk 0:02:14]}  Rfa8 {[%clk 0:01:02]} 19. b3 {[%clk 0:02:03]}  d5 {[%clk 0:00:57]} 20. Bc5 {[%clk 0:02:01]}  Bxc5+ {[%clk 0:00:57]} 21. Qxc5 {[%clk 0:02:01]}  Rc8 {[%clk 0:00:48]} 22. Qb4 {[%clk 0:01:58]} 1-0


[Site "https://www.chess.com"]

[Event "Titled Tuesday Blitz August 15 Early 2023"]
[White "Huynh, Lam Binh Nguyen"]
[Black "Besedes, Danilo"]
[WhiteFideId "12401633"]
[BlackFideId "946796"]
[WhiteElo "2284"]
[BlackElo "2489"]
[Result "1-0"]
[Round "2"]
[TimeControl "180+1"]
[Date "2023.08.15"]
[WhiteClock "0:00:17"]
[BlackClock "0:00:12"]
[Board "189"]

1. d4 {[%clk 0:03:00]}  g6 {[%clk 0:02:59]} 2. e4 {[%clk 0:02:59]}  Bg7 {[%clk 0:03:00]} 3. Nc3 {[%clk 0:03:00]}  c6 {[%clk 0:02:59]} 4. h4 {[%clk 0:03:00]}  h5 {[%clk 0:02:57]} 5. Nf3 {[%clk 0:02:58]}  d6 {[%clk 0:02:57]} 6. Be3 {[%clk 0:02:55]}  Bg4 {[%clk 0:02:57]} 7. Qd2 {[%clk 0:02:54]}  e6 {[%clk 0:02:52]} 8. Bc4 {[%clk 0:02:52]}  d5 {[%clk 0:02:51]} 9. Bb3 {[%clk 0:02:50]}  Nf6 {[%clk 0:02:47]} 10. e5 {[%clk 0:02:48]}  Nfd7 {[%clk 0:02:43]} 11. Ng5 {[%clk 0:02:48]}  c5 {[%clk 0:02:38]} 12. Ba4 {[%clk 0:02:44]}  Nc6 {[%clk 0:02:36]} 13. Nb5 {[%clk 0:02:39]}  O-O {[%clk 0:02:31]} 14. c3 {[%clk 0:02:35]}  Bf5 {[%clk 0:02:03]} 15. O-O {[%clk 0:02:32]}  a6 {[%clk 0:01:53]} 16. Nd6 {[%clk 0:02:31]}  b5 {[%clk 0:01:54]} 17. Bd1 {[%clk 0:02:32]}  cxd4 {[%clk 0:01:50]} 18. cxd4 {[%clk 0:02:30]}  Ndxe5 {[%clk 0:01:45]} 19. dxe5 {[%clk 0:02:24]}  Nxe5 {[%clk 0:01:46]} 20. Nxf5 {[%clk 0:02:22]}  exf5 {[%clk 0:01:41]} 21. Bb3 {[%clk 0:02:21]}  Nc4 {[%clk 0:01:36]} 22. Bxc4 {[%clk 0:02:20]}  dxc4 {[%clk 0:01:35]} 23. Qc2 {[%clk 0:02:17]}  Qf6 {[%clk 0:01:34]} 24. Rab1 {[%clk 0:02:12]}  Rfd8 {[%clk 0:01:30]} 25. g3 {[%clk 0:02:10]}  Rd3 {[%clk 0:01:25]} 26. Rfe1 {[%clk 0:02:07]}  Rad8 {[%clk 0:01:24]} 27. a4 {[%clk 0:02:02]}  Qc6 {[%clk 0:01:21]} 28. axb5 {[%clk 0:01:57]}  axb5 {[%clk 0:01:22]} 29. Qe2 {[%clk 0:01:55]}  b4 {[%clk 0:01:19]} 30. Nh3 {[%clk 0:01:53]}  Rb3 {[%clk 0:01:09]} 31. Nf4 {[%clk 0:01:50]}  Qe4 {[%clk 0:01:05]} 32. Bb6 {[%clk 0:01:18]}  Qxe2 {[%clk 0:00:59]} 33. Rxe2 {[%clk 0:01:18]}  Rb8 {[%clk 0:00:58]} 34. Bc7 {[%clk 0:01:04]}  Rb7 {[%clk 0:00:56]} 35. Be5 {[%clk 0:01:02]}  Bxe5 {[%clk 0:00:43]} 36. Rxe5 {[%clk 0:01:03]}  c3 {[%clk 0:00:44]} 37. Re2 {[%clk 0:01:01]}  Rc7 {[%clk 0:00:40]} 38. Rc2 {[%clk 0:00:59]}  Rd7 {[%clk 0:00:33]} 39. Kf1 {[%clk 0:00:53]}  Ra7 {[%clk 0:00:33]} 40. Ke2 {[%clk 0:00:47]}  Ra2 {[%clk 0:00:33]} 41. Nd3 {[%clk 0:00:47]}  cxb2 {[%clk 0:00:24]} 42. Rbxb2 {[%clk 0:00:43]}  Rbxb2 {[%clk 0:00:20]} 43. Rxb2 {[%clk 0:00:43]}  b3 {[%clk 0:00:20]} 44. Kd2 {[%clk 0:00:39]}  Kg7 {[%clk 0:00:18]} 45. Kc3 {[%clk 0:00:37]}  Ra1 {[%clk 0:00:18]} 46. Kxb3 {[%clk 0:00:36]}  Rd1 {[%clk 0:00:18]} 47. Kc3 {[%clk 0:00:37]}  Ra1 {[%clk 0:00:17]} 48. Kd4 {[%clk 0:00:36]}  Ra4+ {[%clk 0:00:17]} 49. Rb4 {[%clk 0:00:37]}  Ra3 {[%clk 0:00:17]} 50. Rb7 {[%clk 0:00:36]}  Ra4+ {[%clk 0:00:17]} 51. Ke3 {[%clk 0:00:36]}  Re4+ {[%clk 0:00:17]} 52. Kf3 {[%clk 0:00:36]}  Re6 {[%clk 0:00:14]} 53. Nf4 {[%clk 0:00:35]}  Rd6 {[%clk 0:00:15]} 54. Rb5 {[%clk 0:00:33]}  Kf6 {[%clk 0:00:14]} 55. Rd5 {[%clk 0:00:30]}  Ra6 {[%clk 0:00:14]} 56. Ke3 {[%clk 0:00:27]}  Ra3+ {[%clk 0:00:13]} 57. Nd3 {[%clk 0:00:27]}  Ra6 {[%clk 0:00:14]} 58. Rb5 {[%clk 0:00:24]}  Rd6 {[%clk 0:00:14]} 59. Ne5 {[%clk 0:00:21]}  Re6 {[%clk 0:00:14]} 60. Kf4 {[%clk 0:00:20]}  Ra6 {[%clk 0:00:14]} 61. Nf3 {[%clk 0:00:19]}  Ra4+ {[%clk 0:00:14]} 62. Ke3 {[%clk 0:00:19]}  Ra3+ {[%clk 0:00:14]} 63. Ke2 {[%clk 0:00:18]}  Ra2+ {[%clk 0:00:15]} 64. Kf1 {[%clk 0:00:17]}  Ra6 {[%clk 0:00:15]} 65. Ng5 {[%clk 0:00:18]}  Rb6 {[%clk 0:00:12]} 66. Rxb6+ {[%clk 0:00:17]} 1-0


[Site "https://www.chess.com"]

[Event "Titled Tuesday Blitz August 15 Early 2023"]
[White "Diaz, Fernando"]
[Black "feuervogel1000000"]
[WhiteFideId "3701255"]
[WhiteElo "2278"]
[BlackElo "2487"]
[Result "0-1"]
[Round "2"]
[TimeControl "180+1"]
[Date "2023.08.15"]
[WhiteClock "0:00:20"]
[BlackClock "0:01:28"]
[Board "191"]

1. e4 {[%clk 0:03:00]}  c5 {[%clk 0:02:59]} 2. d4 {[%clk 0:03:00]}  cxd4 {[%clk 0:02:59]} 3. c3 {[%clk 0:03:00]}  dxc3 {[%clk 0:02:58]} 4. Nxc3 {[%clk 0:03:01]}  e6 {[%clk 0:02:58]} 5. Nf3 {[%clk 0:02:58]}  Nc6 {[%clk 0:02:57]} 6. Bc4 {[%clk 0:02:56]}  a5 {[%clk 0:02:57]} 7. O-O {[%clk 0:02:54]}  Bb4 {[%clk 0:02:55]} 8. Nb5 {[%clk 0:02:49]}  d6 {[%clk 0:02:44]} 9. Be3 {[%clk 0:02:46]}  Nf6 {[%clk 0:02:41]} 10. a3 {[%clk 0:02:43]}  Bc5 {[%clk 0:02:41]} 11. Bxc5 {[%clk 0:02:41]}  dxc5 {[%clk 0:02:42]} 12. Nd6+ {[%clk 0:02:30]}  Ke7 {[%clk 0:02:40]} 13. e5 {[%clk 0:02:30]}  Ng4 {[%clk 0:02:26]} 14. Qd2 {[%clk 0:01:37]}  f6 {[%clk 0:02:20]} 15. Nxc8+ {[%clk 0:01:32]}  Rxc8 {[%clk 0:02:19]} 16. exf6+ {[%clk 0:01:32]}  gxf6 {[%clk 0:02:17]} 17. Qf4 {[%clk 0:01:29]}  Nge5 {[%clk 0:02:16]} 18. Ba2 {[%clk 0:01:27]}  Qd3 {[%clk 0:02:14]} 19. Rad1 {[%clk 0:01:15]}  Nxf3+ {[%clk 0:02:12]} 20. gxf3 {[%clk 0:01:16]}  Qg6+ {[%clk 0:02:09]} 21. Kh1 {[%clk 0:01:16]}  Rhd8 {[%clk 0:02:08]} 22. Rde1 {[%clk 0:00:59]}  e5 {[%clk 0:02:06]} 23. Qc4 {[%clk 0:00:56]}  Nd4 {[%clk 0:01:51]} 24. f4 {[%clk 0:00:48]}  b5 {[%clk 0:01:46]} 25. Qc1 {[%clk 0:00:47]}  Qh5 {[%clk 0:01:37]} 26. Re3 {[%clk 0:00:43]}  Ne2 {[%clk 0:01:29]} 27. Rxe2 {[%clk 0:00:24]}  Qxe2 {[%clk 0:01:30]} 28. fxe5 {[%clk 0:00:20]}  Qf3+ {[%clk 0:01:28]} 0-1


[Site "https://www.chess.com"]

[Event "Titled Tuesday Blitz August 15 Early 2023"]
[White "Barwinska, Ewa"]
[Black "Mackster23"]
[WhiteFideId "21833761"]
[WhiteElo "2277"]
[BlackElo "2486"]
[Result "0-1"]
[Round "2"]
[TimeControl "180+1"]
[Date "2023.08.15"]
[WhiteClock "0:00:55"]
[BlackClock "0:00:23"]
[Board "193"]

1. e4 {[%clk 0:03:00]}  c5 {[%clk 0:02:58]} 2. b3 {[%clk 0:02:59]}  g6 {[%clk 0:02:52]} 3. Bb2 {[%clk 0:02:59]}  Nf6 {[%clk 0:02:53]} 4. e5 {[%clk 0:02:58]}  Nd5 {[%clk 0:02:53]} 5. e6 {[%clk 0:02:57]}  f6 {[%clk 0:02:53]} 6. exd7+ {[%clk 0:02:53]}  Qxd7 {[%clk 0:02:54]} 7. Nf3 {[%clk 0:02:51]}  Nc6 {[%clk 0:02:53]} 8. Bc4 {[%clk 0:02:51]}  e5 {[%clk 0:02:46]} 9. O-O {[%clk 0:02:48]}  Nb6 {[%clk 0:02:26]} 10. Bb5 {[%clk 0:02:35]}  a6 {[%clk 0:02:13]} 11. Be2 {[%clk 0:02:22]}  Bg7 {[%clk 0:02:06]} 12. a4 {[%clk 0:02:12]}  O-O {[%clk 0:02:04]} 13. a5 {[%clk 0:02:12]}  Nd5 {[%clk 0:02:03]} 14. Bc4 {[%clk 0:02:12]}  Kh8 {[%clk 0:02:00]} 15. d3 {[%clk 0:02:04]}  Nf4 {[%clk 0:01:53]} 16. Nbd2 {[%clk 0:02:01]}  Qg4 {[%clk 0:01:44]} 17. g3 {[%clk 0:01:49]}  Nh3+ {[%clk 0:01:17]} 18. Kh1 {[%clk 0:01:45]}  Be6 {[%clk 0:01:14]} 19. Bxe6 {[%clk 0:01:34]}  Qxe6 {[%clk 0:01:15]} 20. Ne4 {[%clk 0:01:35]}  Qe7 {[%clk 0:01:06]} 21. Ba3 {[%clk 0:01:32]}  Nb4 {[%clk 0:01:00]} 22. c3 {[%clk 0:01:29]}  f5 {[%clk 0:00:57]} 23. Nxc5 {[%clk 0:01:20]}  Qxc5 {[%clk 0:00:45]} 24. Bxb4 {[%clk 0:01:17]}  Nxf2+ {[%clk 0:00:45]} 25. Kg2 {[%clk 0:01:08]}  Qxb4 {[%clk 0:00:28]} 26. Rxf2 {[%clk 0:01:03]}  Qxc3 {[%clk 0:00:27]} 27. Rc1 {[%clk 0:01:03]}  Qxa5 {[%clk 0:00:27]} 28. Rfc2 {[%clk 0:01:01]}  Rad8 {[%clk 0:00:24]} 29. Qe2 {[%clk 0:00:59]}  Qd5 {[%clk 0:00:23]} 30. Rc5 {[%clk 0:00:56]}  Qxd3 {[%clk 0:00:23]} 31. Nxe5 {[%clk 0:00:55]}  Qxe2+ {[%clk 0:00:23]} 0-1


[Site "https://www.chess.com"]

[Event "Titled Tuesday Blitz August 15 Early 2023"]
[White "Tomaszewski, Kacper"]
[Black "Garcia-Castany Musellas, Gal.la"]
[WhiteFideId "1127373"]
[BlackFideId "2241803"]
[WhiteElo "2486"]
[BlackElo "2274"]
[Result "1-0"]
[Round "2"]
[TimeControl "180+1"]
[Date "2023.08.15"]
[WhiteClock "0:01:47"]
[BlackClock "0:00:45"]
[Board "194"]

1. Nf3 {[%clk 0:03:00]}  Nf6 {[%clk 0:02:59]} 2. e3 {[%clk 0:03:00]}  e6 {[%clk 0:02:57]} 3. b3 {[%clk 0:03:00]}  Be7 {[%clk 0:02:57]} 4. Bb2 {[%clk 0:03:00]}  O-O {[%clk 0:02:57]} 5. g3 {[%clk 0:03:01]}  c5 {[%clk 0:02:56]} 6. Bg2 {[%clk 0:03:01]}  Nc6 {[%clk 0:02:56]} 7. O-O {[%clk 0:03:02]}  d5 {[%clk 0:02:56]} 8. c4 {[%clk 0:03:02]}  dxc4 {[%clk 0:02:45]} 9. bxc4 {[%clk 0:03:01]}  Qd3 {[%clk 0:02:42]} 10. Qb3 {[%clk 0:02:53]}  Rd8 {[%clk 0:02:36]} 11. Qxd3 {[%clk 0:02:52]}  Rxd3 {[%clk 0:02:37]} 12. Rc1 {[%clk 0:02:49]}  Rb8 {[%clk 0:02:19]} 13. Ne5 {[%clk 0:02:48]}  Nxe5 {[%clk 0:02:17]} 14. Bxe5 {[%clk 0:02:49]}  Bd6 {[%clk 0:02:14]} 15. Bxf6 {[%clk 0:02:49]}  gxf6 {[%clk 0:02:14]} 16. Be4 {[%clk 0:02:49]}  Be5 {[%clk 0:02:08]} 17. Bxd3 {[%clk 0:02:44]}  Bxa1 {[%clk 0:02:08]} 18. Nc3 {[%clk 0:02:36]}  Bxc3 {[%clk 0:01:56]} 19. Rxc3 {[%clk 0:02:36]}  b6 {[%clk 0:01:56]} 20. Kf1 {[%clk 0:02:32]}  Bb7 {[%clk 0:01:55]} 21. Ra3 {[%clk 0:02:31]}  a6 {[%clk 0:01:50]} 22. Ke2 {[%clk 0:02:30]}  Kf8 {[%clk 0:01:49]} 23. f3 {[%clk 0:02:30]}  h6 {[%clk 0:01:48]} 24. Be4 {[%clk 0:02:30]}  a5 {[%clk 0:01:41]} 25. Rb3 {[%clk 0:02:28]}  Bxe4 {[%clk 0:01:40]} 26. fxe4 {[%clk 0:02:28]}  Ke7 {[%clk 0:01:41]} 27. d4 {[%clk 0:02:22]}  Kd6 {[%clk 0:01:39]} 28. Kd3 {[%clk 0:02:18]}  Rg8 {[%clk 0:01:32]} 29. Rxb6+ {[%clk 0:02:17]}  Kc7 {[%clk 0:01:29]} 30. Rb5 {[%clk 0:02:17]}  cxd4 {[%clk 0:01:23]} 31. exd4 {[%clk 0:02:16]}  Ra8 {[%clk 0:01:23]} 32. Rh5 {[%clk 0:02:16]}  Kd6 {[%clk 0:01:19]} 33. Rxh6 {[%clk 0:02:14]}  Rb8 {[%clk 0:01:20]} 34. Rxf6 {[%clk 0:02:09]}  Rb2 {[%clk 0:01:19]} 35. Rxf7 {[%clk 0:02:07]}  Rxh2 {[%clk 0:01:18]} 36. c5+ {[%clk 0:02:04]}  Kc6 {[%clk 0:01:17]} 37. Re7 {[%clk 0:02:04]}  Rxa2 {[%clk 0:01:15]} 38. Rxe6+ {[%clk 0:02:04]}  Kd7 {[%clk 0:01:15]} 39. Ra6 {[%clk 0:02:02]}  Ra1 {[%clk 0:01:12]} 40. Kc4 {[%clk 0:02:02]}  a4 {[%clk 0:01:10]} 41. Kb4 {[%clk 0:02:02]}  Rd1 {[%clk 0:01:05]} 42. Kc3 {[%clk 0:01:57]}  Ra1 {[%clk 0:01:02]} 43. Kb2 {[%clk 0:01:57]}  Re1 {[%clk 0:00:58]} 44. Rxa4 {[%clk 0:01:50]}  Rxe4 {[%clk 0:00:58]} 45. Kc3 {[%clk 0:01:49]}  Re3+ {[%clk 0:00:58]} 46. Kc4 {[%clk 0:01:50]}  Rxg3 {[%clk 0:00:58]} 47. Ra7+ {[%clk 0:01:50]}  Kd8 {[%clk 0:00:57]} 48. d5 {[%clk 0:01:50]}  Rg1 {[%clk 0:00:54]} 49. c6 {[%clk 0:01:49]}  Rd1 {[%clk 0:00:51]} 50. Kc5 {[%clk 0:01:49]}  Rb1 {[%clk 0:00:45]} 51. Kd6 {[%clk 0:01:47]} 1-0


[Site "https://www.chess.com"]

[Event "Titled Tuesday Blitz August 15 Early 2023"]
[White "Gurevich, Dmitry"]
[Black "San Thit Lwin"]
[WhiteFideId "2000407"]
[BlackFideId "13001272"]
[WhiteElo "2485"]
[BlackElo "2272"]
[Result "1-0"]
[Round "2"]
[TimeControl "180+1"]
[Date "2023.08.15"]
[WhiteClock "0:00:18"]
[BlackClock "0:00:12"]
[Board "196"]

1. d4 {[%clk 0:03:00]}  Nf6 {[%clk 0:03:00]} 2. c4 {[%clk 0:03:00]}  c5 {[%clk 0:03:01]} 3. Nf3 {[%clk 0:02:59]}  e6 {[%clk 0:03:02]} 4. d5 {[%clk 0:02:57]}  exd5 {[%clk 0:03:02]} 5. cxd5 {[%clk 0:02:56]}  d6 {[%clk 0:03:03]} 6. e4 {[%clk 0:02:55]}  g6 {[%clk 0:03:04]} 7. Bd3 {[%clk 0:02:53]}  Bg7 {[%clk 0:03:05]} 8. O-O {[%clk 0:02:52]}  O-O {[%clk 0:03:06]} 9. h3 {[%clk 0:02:52]}  a6 {[%clk 0:03:07]} 10. a4 {[%clk 0:02:51]}  Nbd7 {[%clk 0:03:08]} 11. Nbd2 {[%clk 0:02:51]}  Qc7 {[%clk 0:03:08]} 12. Nc4 {[%clk 0:02:49]}  Re8 {[%clk 0:03:07]} 13. Re1 {[%clk 0:02:48]}  Rb8 {[%clk 0:03:00]} 14. Bf4 {[%clk 0:02:47]}  Bf8 {[%clk 0:02:59]} 15. a5 {[%clk 0:02:40]}  Nh5 {[%clk 0:02:57]} 16. Bh2 {[%clk 0:02:38]}  b5 {[%clk 0:02:56]} 17. axb6 {[%clk 0:02:37]}  Nxb6 {[%clk 0:02:56]} 18. Na5 {[%clk 0:02:35]}  Nd7 {[%clk 0:02:29]} 19. Qd2 {[%clk 0:02:23]}  Rb4 {[%clk 0:01:32]} 20. Nc6 {[%clk 0:02:13]}  Rb6 {[%clk 0:01:31]} 21. Bc4 {[%clk 0:02:00]}  Bg7 {[%clk 0:01:19]} 22. Ra2 {[%clk 0:01:59]}  Bb7 {[%clk 0:01:12]} 23. b3 {[%clk 0:01:41]}  Nhf6 {[%clk 0:01:11]} 24. e5 {[%clk 0:01:37]}  dxe5 {[%clk 0:00:54]} 25. Nfxe5 {[%clk 0:01:20]}  Nxe5 {[%clk 0:00:49]} 26. Bxe5 {[%clk 0:01:17]}  Qd7 {[%clk 0:00:43]} 27. Qc3 {[%clk 0:01:02]}  Bxc6 {[%clk 0:00:35]} 28. dxc6 {[%clk 0:01:01]}  Rxc6 {[%clk 0:00:34]} 29. Rxa6 {[%clk 0:00:47]}  Nd5 {[%clk 0:00:19]} 30. Qa1 {[%clk 0:00:35]}  Rxa6 {[%clk 0:00:17]} 31. Bxa6 {[%clk 0:00:32]}  Bxe5 {[%clk 0:00:18]} 32. Rxe5 {[%clk 0:00:30]}  Nb4 {[%clk 0:00:17]} 33. Bc4 {[%clk 0:00:24]}  Re7 {[%clk 0:00:15]} 34. Qe1 {[%clk 0:00:21]}  Qe8 {[%clk 0:00:15]} 35. Rxe7 {[%clk 0:00:20]}  Qxe7 {[%clk 0:00:15]} 36. Qxe7 {[%clk 0:00:19]}  Kg7 {[%clk 0:00:12]} 37. Qxf7+ {[%clk 0:00:18]} 1-0


[Site "https://www.chess.com"]

[Event "Titled Tuesday Blitz August 15 Early 2023"]
[White "Kohler, Aran"]
[Black "favesaul"]
[WhiteFideId "1002856"]
[WhiteElo "2257"]
[BlackElo "2478"]
[Result "1-0"]
[Round "2"]
[TimeControl "180+1"]
[Date "2023.08.15"]
[WhiteClock "0:00:50"]
[BlackClock "0:00:00"]
[Board "201"]

1. d4 {[%clk 0:03:00]}  Nf6 {[%clk 0:02:59]} 2. c3 {[%clk 0:03:00]}  g6 {[%clk 0:02:57]} 3. Bg5 {[%clk 0:03:01]}  Bg7 {[%clk 0:02:57]} 4. Nd2 {[%clk 0:03:00]}  d5 {[%clk 0:02:57]} 5. e3 {[%clk 0:03:00]}  O-O {[%clk 0:02:57]} 6. Bd3 {[%clk 0:02:59]}  b6 {[%clk 0:02:52]} 7. Ngf3 {[%clk 0:02:54]}  Bb7 {[%clk 0:02:51]} 8. h4 {[%clk 0:02:54]}  h6 {[%clk 0:02:22]} 9. h5 {[%clk 0:02:54]}  hxg5 {[%clk 0:02:08]} 10. hxg6 {[%clk 0:02:53]}  fxg6 {[%clk 0:01:32]} 11. Bxg6 {[%clk 0:02:48]}  Bc8 {[%clk 0:01:11]} 12. Nxg5 {[%clk 0:02:48]}  Bg4 {[%clk 0:01:05]} 13. Qc2 {[%clk 0:02:48]}  Nh5 {[%clk 0:00:25]} 14. Rxh5 {[%clk 0:01:58]}  Bxh5 {[%clk 0:00:24]} 15. Bxh5 {[%clk 0:01:51]}  Rf6 {[%clk 0:00:25]} 16. f4 {[%clk 0:01:37]}  c5 {[%clk 0:00:18]} 17. O-O-O {[%clk 0:01:36]}  Nc6 {[%clk 0:00:18]} 18. Rh1 {[%clk 0:01:35]}  cxd4 {[%clk 0:00:13]} 19. exd4 {[%clk 0:01:34]}  Kf8 {[%clk 0:00:12]} 20. Nh7+ {[%clk 0:01:33]}  Kg8 {[%clk 0:00:12]} 21. Nxf6+ {[%clk 0:01:33]}  exf6 {[%clk 0:00:13]} 22. Bg4 {[%clk 0:01:26]}  Qd6 {[%clk 0:00:13]} 23. Qh7+ {[%clk 0:01:25]}  Kf8 {[%clk 0:00:12]} 24. g3 {[%clk 0:01:24]}  b5 {[%clk 0:00:07]} 25. Kb1 {[%clk 0:01:23]}  b4 {[%clk 0:00:07]} 26. Re1 {[%clk 0:01:09]}  bxc3 {[%clk 0:00:07]} 27. Be6 {[%clk 0:01:07]}  cxd2 {[%clk 0:00:02]} 28. Qg8+ {[%clk 0:01:07]}  Ke7 {[%clk 0:00:03]} 29. Qxg7+ {[%clk 0:01:03]}  Kd8 {[%clk 0:00:03]} 30. Qxf6+ {[%clk 0:01:01]}  Kc7 {[%clk 0:00:02]} 31. Rd1 {[%clk 0:00:56]}  Re8 {[%clk 0:00:02]} 32. f5 {[%clk 0:00:56]}  Qb4 {[%clk 0:00:00]} 33. Qg7+ {[%clk 0:00:50]} 1-0


[Site "https://www.chess.com"]

[Event "Titled Tuesday Blitz August 15 Early 2023"]
[White "Ankerst, Mihael"]
[Black "Fajdetic, Hrvoje"]
[WhiteFideId "14602369"]
[BlackFideId "14501945"]
[WhiteElo "2477"]
[BlackElo "2251"]
[Result "1-0"]
[Round "2"]
[TimeControl "180+1"]
[Date "2023.08.15"]
[WhiteClock "0:00:31"]
[BlackClock "0:00:01"]
[Board "202"]

1. e4 {[%clk 0:02:53]}  c5 {[%clk 0:02:59]} 2. Nf3 {[%clk 0:02:53]}  a6 {[%clk 0:02:59]} 3. d4 {[%clk 0:02:53]}  cxd4 {[%clk 0:02:58]} 4. Nxd4 {[%clk 0:02:54]}  Nf6 {[%clk 0:02:58]} 5. Nc3 {[%clk 0:02:55]}  e5 {[%clk 0:02:57]} 6. Nf3 {[%clk 0:02:55]}  Nc6 {[%clk 0:02:55]} 7. Bc4 {[%clk 0:02:55]}  Bb4 {[%clk 0:02:51]} 8. O-O {[%clk 0:02:54]}  O-O {[%clk 0:02:49]} 9. Nd5 {[%clk 0:02:55]}  Be7 {[%clk 0:02:43]} 10. Nxf6+ {[%clk 0:02:55]}  Bxf6 {[%clk 0:02:43]} 11. c3 {[%clk 0:02:55]}  b5 {[%clk 0:02:40]} 12. Bd5 {[%clk 0:02:55]}  Rb8 {[%clk 0:02:38]} 13. Re1 {[%clk 0:02:54]}  Re8 {[%clk 0:02:37]} 14. Nd2 {[%clk 0:02:54]}  Ne7 {[%clk 0:02:31]} 15. Bb3 {[%clk 0:02:53]}  Bb7 {[%clk 0:02:29]} 16. Nf1 {[%clk 0:02:53]}  d5 {[%clk 0:02:27]} 17. exd5 {[%clk 0:02:53]}  Bxd5 {[%clk 0:02:26]} 18. Ne3 {[%clk 0:02:46]}  Bc6 {[%clk 0:02:02]} 19. Qg4 {[%clk 0:02:45]}  Qd7 {[%clk 0:01:56]} 20. Qh5 {[%clk 0:02:24]}  g6 {[%clk 0:01:51]} 21. Qh6 {[%clk 0:02:24]}  Nf5 {[%clk 0:01:46]} 22. Nxf5 {[%clk 0:02:23]}  Qxf5 {[%clk 0:01:47]} 23. Qe3 {[%clk 0:02:01]}  Rbd8 {[%clk 0:01:37]} 24. Qg3 {[%clk 0:02:00]}  Rd3 {[%clk 0:01:32]} 25. Be3 {[%clk 0:02:00]}  h5 {[%clk 0:01:20]} 26. h4 {[%clk 0:01:12]}  Qg4 {[%clk 0:00:45]} 27. Qxg4 {[%clk 0:01:01]}  hxg4 {[%clk 0:00:45]} 28. Rad1 {[%clk 0:00:49]}  Rxd1 {[%clk 0:00:45]} 29. Rxd1 {[%clk 0:00:49]}  Rd8 {[%clk 0:00:37]} 30. Bg5 {[%clk 0:00:37]}  Rxd1+ {[%clk 0:00:34]} 31. Bxd1 {[%clk 0:00:36]}  Bxg5 {[%clk 0:00:27]} 32. hxg5 {[%clk 0:00:37]}  Bd7 {[%clk 0:00:27]} 33. Kh2 {[%clk 0:00:38]}  Be6 {[%clk 0:00:24]} 34. a3 {[%clk 0:00:38]}  Kf8 {[%clk 0:00:12]} 35. Kg3 {[%clk 0:00:38]}  Ke7 {[%clk 0:00:12]} 36. Bxg4 {[%clk 0:00:38]}  Bd5 {[%clk 0:00:11]} 37. Bf3 {[%clk 0:00:37]}  Be6 {[%clk 0:00:10]} 38. Bb7 {[%clk 0:00:33]}  a5 {[%clk 0:00:10]} 39. Ba6 {[%clk 0:00:33]}  Bc4 {[%clk 0:00:10]} 40. a4 {[%clk 0:00:34]}  Kd6 {[%clk 0:00:10]} 41. Bxb5 {[%clk 0:00:32]}  Bd5 {[%clk 0:00:06]} 42. b4 {[%clk 0:00:31]}  axb4 {[%clk 0:00:06]} 43. cxb4 {[%clk 0:00:32]}  Be4 {[%clk 0:00:04]} 44. f3 {[%clk 0:00:32]}  Ba8 {[%clk 0:00:05]} 45. a5 {[%clk 0:00:32]}  Bb7 {[%clk 0:00:05]} 46. Bc4 {[%clk 0:00:32]}  Ba8 {[%clk 0:00:01]} 47. Bxf7 {[%clk 0:00:31]} 1-0


[Site "https://www.chess.com"]

[Event "Titled Tuesday Blitz August 15 Early 2023"]
[White "brm72"]
[Black "Schachpanda_Youtube"]
[WhiteElo "2475"]
[BlackElo "2243"]
[Result "1-0"]
[Round "2"]
[TimeControl "180+1"]
[Date "2023.08.15"]
[WhiteClock "0:00:47"]
[BlackClock "0:00:20"]
[Board "205"]

1. e4 {[%clk 0:03:00]}  c6 {[%clk 0:03:00]} 2. Nc3 {[%clk 0:03:00]}  d5 {[%clk 0:03:01]} 3. Nf3 {[%clk 0:03:00]}  dxe4 {[%clk 0:03:01]} 4. Nxe4 {[%clk 0:03:01]}  Nf6 {[%clk 0:03:01]} 5. Qe2 {[%clk 0:03:00]}  Nxe4 {[%clk 0:03:01]} 6. Qxe4 {[%clk 0:03:01]}  Nd7 {[%clk 0:03:02]} 7. Bc4 {[%clk 0:02:59]}  Nf6 {[%clk 0:03:02]} 8. Ne5 {[%clk 0:03:00]}  e6 {[%clk 0:03:02]} 9. Qe2 {[%clk 0:03:00]}  b5 {[%clk 0:03:03]} 10. Bd3 {[%clk 0:02:54]}  Qc7 {[%clk 0:03:02]} 11. a4 {[%clk 0:02:48]}  Bd6 {[%clk 0:02:44]} 12. Nxc6 {[%clk 0:02:41]}  Bd7 {[%clk 0:02:43]} 13. axb5 {[%clk 0:02:39]}  O-O {[%clk 0:02:38]} 14. O-O {[%clk 0:01:58]}  Bxc6 {[%clk 0:02:31]} 15. bxc6 {[%clk 0:01:55]}  Qxc6 {[%clk 0:02:32]} 16. b3 {[%clk 0:01:31]}  Nd5 {[%clk 0:02:26]} 17. Qe4 {[%clk 0:01:26]}  f5 {[%clk 0:02:14]} 18. Qxe6+ {[%clk 0:01:25]}  Kh8 {[%clk 0:02:14]} 19. Ra6 {[%clk 0:01:04]}  Rf6 {[%clk 0:00:56]} 20. Qxf6 {[%clk 0:00:52]}  Bxh2+ {[%clk 0:00:34]} 21. Kxh2 {[%clk 0:00:48]}  Qc7+ {[%clk 0:00:20]} 22. Qd6 {[%clk 0:00:47]} 1-0


[Site "https://www.chess.com"]